[Event "EYTCC Open U18 2022"]
[Site "Thessaloniki"]
[Date "2022.07.17"]
[Round "6.14"]
[White "Marn, Jan"]
[Black "Juhasz, Agoston"]
[Result "0-1"]
[ECO "A48"]
[WhiteElo "2282"]
[BlackElo "2344"]
[Annotator "ChessBase"]
[PlyCount "165"]
[EventDate "2022.07.12"]
[EventType "team-tourn"]
[EventCountry "GRE"]
[SourceTitle "playchess.com"]
[Source "ChessBase"]
[SourceQuality "1"]
[WhiteTeam "Slovenia"]
[BlackTeam "Hungary"]
[WhiteTeamCountry "SLO"]
[BlackTeamCountry "HUN"]
[TimeControl "40/5400+30:1800+30"]

1. d4 {[%emt 0:00:04]} Nf6 {[%emt 0:00:17]} 2. Nf3 {[%emt 0:00:04]} g6 {[%emt 0:00:17]} 3. Nbd2 {[%emt 0:00:05]} d5 {[%emt 0:00:52]} 4. b4 {[%emt 0:00:20]} Bg7 {[%emt 0:17:04]} 5. e3 {[%emt 0:00:38]} O-O {[%emt 0:00:29]} 6. c4 {[%emt 0:00:04]} Nc6 {[%emt 0:04:56]} 7. b5 {[%emt 0:05:48]} Na5 {[%emt 0:00:45]} 8. c5 {[%emt 0:13:18]} c6 {[%emt 0:04:57]} 9. a4 {[%emt 0:01:17]} Nd7 {[%emt 0:07:13]} 10. Bb2 {[%emt 0:02:49]} Nxc5 {[%emt 0:08:36]} 11. Rc1 {[%emt 0:02:04]} Nd7 {[%emt 0:02:39]} 12. Bc3 {[%emt 0:08:31]} cxb5 {[%emt 0:04:13]} 13. axb5 {[%emt 0:00:42]} a6 {[%emt 0:02:21]} 14. Ra1 {[%emt 0:13:58]} b6 {[%emt 0:05:36]} 15. bxa6 {[%emt 0:04:41]} Bxa6 {[%emt 0:00:51]} 16. Bxa6 {[%emt 0:00:06]} Rxa6 {[%emt 0:00:09]} 17. O-O {[%emt 0:00:09]} Qc8 {[%emt 0:08:37]} 18. Bb4 {[%emt 0:01:50]} Nc6 {[%emt 0:01:35]} 19. Qb3 {[%emt 0:01:22]} Nxb4 {[%emt 0:05:57]} 20. Qxb4 {[%emt 0:00:07]} e6 {[%emt 0:00:57]} 21. Nb3 {[%emt 0:04:58]} Rxa1 {[%emt 0:02:07]} 22. Rxa1 {[%emt 0:00:06]} Qc4 {[%emt 0:00:48]} 23. Qe7 {[%emt 0:02:55]} Qxb3 {[%emt 0:07:05]} 24. Qxd7 {[%emt 0:00:06]} Qb2 {[%emt 0:00:19]} 25. Qa7 {[%emt 0:01:04]} Rc8 {[%emt 0:01:55]} 26. h4 {[%emt 0:00:18]} Bf6 {[%emt 0:00:59]} 27. Rf1 {[%emt 0:05:32]} b5 {[%emt 0:01:45]} 28. Qb7 {[%emt 0:07:20]} Rf8 {[%emt 0:00:30]} 29. e4 {[%emt 0:03:57]} dxe4 {[%emt 0:03:21]} 30. Qxe4 {[%emt 0:00:04]} b4 {[%emt 0:01:14]} 31. Rb1 {[%emt 0:00:31]} Qc3 {[%emt 0:00:12]} 32. Qb7 {[%emt 0:02:58]} Bxd4 {[%emt 0:00:55]} 33. Nxd4 {[%emt 0:01:05]} Qxd4 {[%emt 0:00:04]} 34. Qxb4 {[%emt 0:00:44]} Qe5 {[%emt 0:02:52]} 35. g3 {[%emt 0:02:16]} h5 {[%emt 0:00:48]} 36. Qb5 {[%emt 0:01:05]} Qd4 {[%emt 0:00:28]} 37. Qb4 {[%emt 0:00:54]} Qf6 {[%emt 0:00:16]} 38. Qf4 {[%emt 0:00:57]} Qxf4 {[%emt 0:04:27]} 39. gxf4 {[%emt 0:00:05]} Rd8 {[%emt 0:00:11]} 40. Kg2 {[%emt 0:00:00]} Kg7 {[%emt 0:00:00]} 41. Rb7 {[%emt 0:01:31]} Kf6 {[%emt 0:01:37]} 42. Kg3 {[%emt 0:00:08]} Rd1 {[%emt 0:00:22]} 43. f3 {[%emt 0:00:06]} Rg1+ {[%emt 0:01:43]} 44. Kh2 {[%emt 0:02:10]} Ra1 {[%emt 0:02:24]} 45. Kg3 {[%emt 0:00:14]} Ra8 {[%emt 0:00:50]} 46. Rc7 {[%emt 0:00:56]} Re8 {[%emt 0:00:17]} 47. Ra7 {[%emt 0:00:36]} Re7 {[%emt 0:00:14]} 48. Ra6 {[%emt 0:01:32]} Rd7 {[%emt 0:00:17]} 49. Ra5 {[%emt 0:01:31]} Rb7 {[%emt 0:01:13]} 50. Ra6 {[%emt 0:00:48]} Rc7 {[%emt 0:00:40]} 51. Ra5 {[%emt 0:01:26]} Rd7 {[%emt 0:00:26]} 52. Kg2 {[%emt 0:00:35]} Rd5 {[%emt 0:10:34]} 53. Ra7 {[%emt 0:00:09]} e5 {[%emt 0:01:23]} 54. fxe5+ {[%emt 0:01:42]} Rxe5 {[%emt 0:00:10]} 55. Kg3 {[%emt 0:00:07]} Ke6 {[%emt 0:00:13]} 56. Rb7 {[%emt 0:02:57]} f6 {[%emt 0:00:35]} 57. Rb6+ {[%emt 0:00:26]} Kf5 {[%emt 0:00:19]} 58. Rb8 {[%emt 0:00:38]} Ra5 {[%emt 0:01:21]} 59. Rc8 {[%emt 0:00:08]} g5 {[%emt 0:03:49]} 60. hxg5 {[%emt 0:01:56]} fxg5 {[%emt 0:00:07]} 61. Rf8+ {[%emt 0:00:10]} Kg6 {[%emt 0:00:15]} 62. Rg8+ {[%emt 0:00:11]} Kf6 {[%emt 0:00:11]} 63. Rf8+ {[%emt 0:00:18]} Kg7 {[%emt 0:00:11]} 64. Rb8 {[%emt 0:00:14]} Ra6 {[%emt 0:00:33]} 65. Rc8 {[%emt 0:17:57]} Kg6 {[%emt 0:00:16]} 66. Rg8+ {[%emt 0:00:37]} Kf5 {[%emt 0:00:08]} 67. Rf8+ {[%emt 0:00:04]} Rf6 {[%emt 0:00:24]} 68. Ra8 {[%emt 0:00:05]} Re6 {[%emt 0:01:50]} 69. Rf8+ {[%emt 0:00:18]} Rf6 {[%emt 0:00:16]} 70. Ra8 {[%emt 0:00:32]} h4+ {[%emt 0:01:05]} 71. Kf2 {[%emt 0:00:29]} Rb6 {[%emt 0:01:06]} 72. Rh8 {[%emt 0:00:26]} Rb2+ {[%emt 0:00:51]} 73. Ke3 {[%emt 0:00:06]} Rg2 {[%emt 0:01:40]} 74. Rh6 {[%emt 0:02:57]} Rh2 {[%emt 0:01:09]} 75. Rh5 {[%emt 0:03:02]} Rh3 {[%emt 0:01:19]} 76. Rh8 {[%emt 0:12:27]} g4 {[%emt 0:00:28]} 77. Rf8+ {[%emt 0:00:03]} Ke5 {[%emt 0:00:59]} 78. Re8+ {[%emt 0:02:12]} Kd5 {[%emt 0:00:32]} 79. Rd8+ {[%emt 0:01:40]} Ke6 {[%emt 0:00:22]} 80. Re8+ {[%emt 0:00:51]} Kf7 {[%emt 0:01:32]} 81. Re4 {[%emt 0:00:11]} g3 {[%emt 0:01:01]} 82. Rg4 {[%emt 0:00:52]} Rh2 {[%emt 0:00:56]} 83. Kd4 0-1

[Event "EYTCC Open U18 2022"]
[Site "Thessaloniki"]
[Date "2022.07.17"]
[Round "6.15"]
[White "Palczert, Matyas"]
[Black "Nareks, Matic"]
[Result "1-0"]
[ECO "B08"]
[WhiteElo "2321"]
[BlackElo "2221"]
[Annotator "ChessBase"]
[PlyCount "102"]
[EventDate "2022.07.12"]
[EventType "team-tourn"]
[EventCountry "GRE"]
[SourceTitle "playchess.com"]
[Source "ChessBase"]
[SourceQuality "1"]
[WhiteTeam "Hungary"]
[BlackTeam "Slovenia"]
[WhiteTeamCountry "HUN"]
[BlackTeamCountry "SLO"]
[TimeControl "40/5400+30:1800+30"]

1. e4 {[%emt 0:00:03]} g6 {[%emt 0:00:10]} 2. d4 {[%emt 0:00:13]} Bg7 {[%emt 0:00:07]} 3. Nf3 {[%emt 0:00:12]} d6 {[%emt 0:00:07]} 4. Be2 {[%emt 0:00:13]} Nf6 {[%emt 0:00:10]} 5. Nc3 {[%emt 0:00:10]} O-O {[%emt 0:00:09]} 6. O-O {[%emt 0:00:25]} a6 {[%emt 0:00:05]} 7. a4 {[%emt 0:00:31]} Nc6 {[%emt 0:00:08]} 8. d5 {[%emt 0:00:38]} Nb4 {[%emt 0:00:06]} 9. a5 {[%emt 0:01:13]} e6 {[%emt 0:00:07]} 10. h3 {[%emt 0:17:14]} exd5 {[%emt 0:00:53]} 11. exd5 {[%emt 0:01:11]} c6 {[%emt 0:00:19]} 12. dxc6 {[%emt 0:02:37]} bxc6 {[%emt 0:00:16]} 13. Bf4 {[%emt 0:07:22]} Nfd5 {[%emt 0:05:47]} 14. Nxd5 {[%emt 0:03:26]} Nxd5 {[%emt 0:00:11]} 15. Bg5 {[%emt 0:00:45]} Qc7 {[%emt 0:01:28]} 16. c4 {[%emt 0:05:28]} Nb4 {[%emt 0:13:26]} 17. Bf4 {[%emt 0:05:43]} Rd8 {[%emt 0:00:52]} 18. c5 {[%emt 0:02:46]} Bf8 {[%emt 0:03:50]} 19. Qd2 {[%emt 0:15:19]} Rb8 {[%emt 0:03:31]} 20. Bc4 {[%emt 0:04:54]} Nd5 {[%emt 0:05:15]} 21. Bxd5 {[%emt 0:02:20]} cxd5 {[%emt 0:00:08]} 22. Rac1 {[%emt 0:00:34]} Bd7 {[%emt 0:06:36]} 23. cxd6 {[%emt 0:02:03]} Qb7 {[%emt 0:00:37]} 24. Rc7 {[%emt 0:03:19]} Qb5 {[%emt 0:05:47]} 25. Ne5 {[%emt 0:07:02]} Qa4 {[%emt 0:15:46]} 26. Nxd7 {[%emt 0:07:15]} Rxd7 {[%emt 0:00:08]} 27. Rxd7 {[%emt 0:01:12]} Qxd7 {[%emt 0:00:06]} 28. Qxd5 {[%emt 0:01:05]} Rb4 {[%emt 0:01:55]} 29. Bg3 {[%emt 0:00:43]} h5 {[%emt 0:01:41]} 30. Rc1 {[%emt 0:02:28]} Rb5 {[%emt 0:00:54]} 31. Rc5 {[%emt 0:02:55]} Rxb2 {[%emt 0:03:52]} 32. Rc7 {[%emt 0:00:52]} Rb5 {[%emt 0:00:05]} 33. Qe4 {[%emt 0:03:00]} Qf5 {[%emt 0:04:22]} 34. Qxf5 {[%emt 0:00:12]} Rxf5 {[%emt 0:00:06]} 35. Ra7 {[%emt 0:00:34]} Rxa5 {[%emt 0:02:03]} 36. d7 {[%emt 0:00:26]} Be7 {[%emt 0:01:52]} 37. Ra8+ {[%emt 0:00:16]} Kg7 {[%emt 0:00:06]} 38. d8=Q {[%emt 0:00:43]} Bxd8 {[%emt 0:00:09]} 39. Rxd8 {[%emt 0:00:08]} Kf6 {[%emt 0:00:34]} 40. h4 {[%emt 0:00:00]} Ra2 {[%emt 0:00:00]} 41. Rd6+ {[%emt 0:01:54]} Kf5 {[%emt 0:01:28]} 42. Rd5+ {[%emt 0:00:29]} Ke6 {[%emt 0:00:29]} 43. Re5+ {[%emt 0:00:20]} Kf6 {[%emt 0:00:07]} 44. Rc5 {[%emt 0:00:50]} Ra1+ {[%emt 0:01:32]} 45. Kh2 {[%emt 0:01:17]} Ra4 {[%emt 0:00:10]} 46. Be5+ {[%emt 0:00:36]} Ke6 {[%emt 0:01:03]} 47. g3 {[%emt 0:00:38]} Re4 {[%emt 0:01:11]} 48. Bf4 {[%emt 0:00:41]} Ra4 {[%emt 0:01:23]} 49. Rc6+ {[%emt 0:00:29]} Kd7 {[%emt 0:00:28]} 50. Rc7+ {[%emt 0:00:32]} Ke6 {[%emt 0:00:08]} 51. Bg5 {[%emt 0:00:24]} Kd5 1-0

[Event "EYTCC Open U18 2022"]
[Site "Thessaloniki"]
[Date "2022.07.17"]
[Round "6.16"]
[White "Lavrencic, Matic"]
[Black "Pasztor, Balazs"]
[Result "1/2-1/2"]
[ECO "B90"]
[WhiteElo "2151"]
[BlackElo "2336"]
[Annotator "ChessBase"]
[PlyCount "66"]
[EventDate "2022.07.12"]
[EventType "team-tourn"]
[EventCountry "GRE"]
[SourceTitle "playchess.com"]
[Source "ChessBase"]
[SourceQuality "1"]
[WhiteTeam "Slovenia"]
[BlackTeam "Hungary"]
[WhiteTeamCountry "SLO"]
[BlackTeamCountry "HUN"]
[TimeControl "40/5400+30:1800+30"]

1. e4 {[%emt 0:00:02]} c5 {[%emt 0:00:06]} 2. Nf3 {[%emt 0:00:12]} d6 {[%emt 0:00:06]} 3. d4 {[%emt 0:00:06]} cxd4 {[%emt 0:00:04]} 4. Nxd4 {[%emt 0:00:05]} Nf6 {[%emt 0:00:05]} 5. Nc3 {[%emt 0:00:06]} a6 {[%emt 0:00:04]} 6. Be3 {[%emt 0:00:06]} e5 {[%emt 0:00:06]} 7. Nb3 {[%emt 0:00:05]} Be6 {[%emt 0:00:09]} 8. f3 {[%emt 0:00:06]} h5 {[%emt 0:00:22]} 9. Qd2 {[%emt 0:00:14]} Nbd7 {[%emt 0:00:08]} 10. Nd5 {[%emt 0:00:08]} Bxd5 {[%emt 0:00:45]} 11. exd5 {[%emt 0:00:45]} g6 {[%emt 0:00:31]} 12. O-O-O {[%emt 0:00:13]} Nb6 {[%emt 0:02:00]} 13. Kb1 {[%emt 0:00:18]} Nfxd5 {[%emt 0:00:35]} 14. Bf2 {[%emt 0:01:59]} Nf6 {[%emt 0:03:29]} 15. Bh4 {[%emt 0:04:12]} Be7 {[%emt 0:00:19]} 16. Bxf6 {[%emt 0:02:20]} Bxf6 {[%emt 0:00:03]} 17. Qxd6 {[%emt 0:00:19]} Qxd6 {[%emt 0:00:37]} 18. Rxd6 {[%emt 0:01:05]} Bd8 {[%emt 0:00:12]} 19. Be2 {[%emt 0:06:44]} Bc7 {[%emt 0:13:39]} 20. Rdd1 {[%emt 0:00:47]} Ke7 {[%emt 0:20:34]} 21. Na5 {[%emt 0:09:12]} Rab8 {[%emt 0:09:52]} 22. Nc4 {[%emt 0:23:23]} Rhd8 {[%emt 0:03:46]} 23. Nxb6 {[%emt 0:00:31]} Bxb6 {[%emt 0:00:08]} 24. Bc4 {[%emt 0:00:53]} Rxd1+ {[%emt 0:06:34]} 25. Rxd1 {[%emt 0:00:05]} Rc8 {[%emt 0:12:53]} 26. Bd5 {[%emt 0:00:59]} Rc7 {[%emt 0:02:52]} 27. c3 {[%emt 0:01:54]} f5 {[%emt 0:01:54]} 28. Kc2 {[%emt 0:01:52]} Rd7 {[%emt 0:04:32]} 29. Bc4 {[%emt 0:04:17]} Rxd1 {[%emt 0:01:33]} 30. Kxd1 {[%emt 0:00:02]} Bg1 {[%emt 0:00:26]} 31. h3 {[%emt 0:00:15]} a5 {[%emt 0:00:22]} 32. Ke2 {[%emt 0:01:05]} b6 {[%emt 0:01:43]} 33. Bd5 {[%emt 0:01:10]} h4 {[%emt 0:01:47]} 1/2-1/2

[Event "EYTCC Open U18 2022"]
[Site "Thessaloniki"]
[Date "2022.07.17"]
[Round "6.17"]
[White "Zeneli, Klendi"]
[Black "Olsson, William"]
[Result "1-0"]
[ECO "B22"]
[WhiteElo "1921"]
[BlackElo "2284"]
[Annotator "ChessBase"]
[PlyCount "51"]
[EventDate "2022.07.12"]
[EventType "team-tourn"]
[EventCountry "GRE"]
[SourceTitle "playchess.com"]
[Source "ChessBase"]
[SourceQuality "1"]
[WhiteTeam "Albania"]
[BlackTeam "Sweden"]
[WhiteTeamCountry "ALB"]
[BlackTeamCountry "SWE"]
[TimeControl "40/5400+30:1800+30"]

1. e4 {[%emt 0:00:03]} c5 {[%emt 0:00:05]} 2. c3 {[%emt 0:00:07]} Nf6 {[%emt 0:00:02]} 3. e5 {[%emt 0:00:07]} Nd5 {[%emt 0:00:02]} 4. d4 {[%emt 0:00:11]} cxd4 {[%emt 0:00:03]} 5. cxd4 {[%emt 0:00:38]} e6 {[%emt 0:00:19]} 6. Nc3 {[%emt 0:00:17]} Nxc3 {[%emt 0:01:44]} 7. bxc3 {[%emt 0:00:06]} Qc7 {[%emt 0:00:26]} 8. Bd2 {[%emt 0:00:06]} d6 {[%emt 0:00:16]} 9. f4 {[%emt 0:00:48]} Be7 {[%emt 0:03:10]} 10. Nf3 {[%emt 0:00:24]} Nd7 {[%emt 0:03:58]} 11. Bd3 {[%emt 0:02:25]} O-O {[%emt 0:02:46]} 12. O-O {[%emt 0:00:49]} f5 {[%emt 0:07:36]} 13. exf6 {[%emt 0:12:40]} Nxf6 {[%emt 0:03:13]} 14. Qc2 {[%emt 0:00:52]} Bd7 {[%emt 0:01:42]} 15. Rae1 {[%emt 0:02:23]} h6 {[%emt 0:04:33]} 16. Nh4 {[%emt 0:20:36]} Rfe8 {[%emt 0:05:51]} 17. Ng6 {[%emt 0:07:58]} Rac8 {[%emt 0:04:08]} 18. Rf3 {[%emt 0:04:00]} Nd5 {[%emt 0:08:50]} 19. Qd1 {[%emt 0:19:24]} Bf6 {[%emt 0:02:31]} 20. Bb1 {[%emt 0:01:06]} Qc4 {[%emt 0:07:56]} 21. Rg3 {[%emt 0:09:15]} Qb5 {[%emt 0:03:21]} 22. Ne5 {[%emt 0:02:22]} Ne7 {[%emt 0:07:52]} 23. Qh5 {[%emt 0:04:34]} dxe5 {[%emt 0:04:22]} 24. fxe5 {[%emt 0:00:29]} Rf8 {[%emt 0:04:54]} 25. Bxh6 {[%emt 0:02:52]} Rxc3 {[%emt 0:03:46]} 26. Bxg7 {[%emt 0:01:28]} 1-0

[Event "EYTCC Open U18 2022"]
[Site "Thessaloniki"]
[Date "2022.07.17"]
[Round "6.18"]
[White "Falkevall, Axel"]
[Black "Xhembulla, Aleksander"]
[Result "0-1"]
[ECO "C90"]
[WhiteElo "2275"]
[BlackElo "1909"]
[Annotator "ChessBase"]
[PlyCount "100"]
[EventDate "2022.07.12"]
[EventType "team-tourn"]
[EventCountry "GRE"]
[SourceTitle "playchess.com"]
[Source "ChessBase"]
[SourceQuality "1"]
[WhiteTeam "Sweden"]
[BlackTeam "Albania"]
[WhiteTeamCountry "SWE"]
[BlackTeamCountry "ALB"]
[TimeControl "40/5400+30:1800+30"]

1. e4 {[%emt 0:00:05]} e5 {[%emt 0:00:06]} 2. Nf3 {[%emt 0:00:08]} Nc6 {[%emt 0:00:05]} 3. Bb5 {[%emt 0:00:12]} a6 {[%emt 0:00:05]} 4. Ba4 {[%emt 0:00:08]} Nf6 {[%emt 0:00:06]} 5. O-O {[%emt 0:00:18]} Be7 {[%emt 0:00:05]} 6. d3 {[%emt 0:00:16]} b5 {[%emt 0:00:06]} 7. Bb3 {[%emt 0:00:06]} d6 {[%emt 0:00:03]} 8. c3 {[%emt 0:00:14]} O-O {[%emt 0:01:01]} 9. Re1 {[%emt 0:00:31]} Na5 {[%emt 0:01:16]} 10. Bc2 {[%emt 0:00:07]} c5 {[%emt 0:00:03]} 11. Nbd2 {[%emt 0:00:50]} Nc6 {[%emt 0:04:18]} 12. Nf1 {[%emt 0:00:16]} h6 {[%emt 0:03:15]} 13. Ne3 {[%emt 0:01:37]} Re8 {[%emt 0:02:41]} 14. d4 {[%emt 0:03:48]} exd4 {[%emt 0:07:59]} 15. cxd4 {[%emt 0:00:08]} Bf8 {[%emt 0:00:26]} 16. a4 {[%emt 0:20:11]} Bb7 {[%emt 0:16:39]} 17. Nf5 {[%emt 0:05:48]} Nb4 {[%emt 0:01:36]} 18. d5 {[%emt 0:01:00]} Nxc2 {[%emt 0:01:05]} 19. Qxc2 {[%emt 0:00:06]} Qd7 {[%emt 0:07:54]} 20. Ng3 {[%emt 0:05:21]} b4 {[%emt 0:02:41]} 21. b3 {[%emt 0:03:49]} a5 {[%emt 0:12:41]} 22. Bb2 {[%emt 0:02:37]} Qd8 {[%emt 0:04:28]} 23. Nf1 {[%emt 0:07:48]} Nd7 {[%emt 0:00:57]} 24. Ne3 Nb6 {[%emt 0:01:09]} 25. Nd2 {[%emt 0:05:03]} Ba6 {[%emt 0:02:04]} 26. Rac1 {[%emt 0:08:01]} Qd7 {[%emt 0:07:29]} 27. Ba1 {[%emt 0:06:09]} Rac8 {[%emt 0:03:12]} 28. Qb2 {[%emt 0:02:41]} c4 {[%emt 0:02:04]} 29. bxc4 {[%emt 0:01:27]} Nxa4 {[%emt 0:00:28]} 30. Qd4 {[%emt 0:01:50]} Nc5 {[%emt 0:01:12]} 31. Nf5 {[%emt 0:02:29]} f6 {[%emt 0:00:25]} 32. Re3 {[%emt 0:01:42]} Kh7 {[%emt 0:04:36]} 33. g4 {[%emt 0:15:34]} Qf7 {[%emt 0:01:51]} 34. Rh3 {[%emt 0:01:53]} Qg6 {[%emt 0:06:00]} 35. Kh1 {[%emt 0:01:36]} Qg5 {[%emt 0:02:20]} 36. Rf1 {[%emt 0:01:16]} Rc7 {[%emt 0:03:53]} 37. Rg1 {[%emt 0:02:32]} Bc8 {[%emt 0:00:36]} 38. Rh5 {[%emt 0:01:03]} Qf4 {[%emt 0:00:39]} 39. g5 {[%emt 0:00:29]} Bxf5 {[%emt 0:01:22]} 40. gxh6 {[%emt 0:00:00]} Bxe4+ {[%emt 0:00:00]} 41. Nxe4 {[%emt 0:00:30]} Qf3+ {[%emt 0:01:03]} 42. Rg2 {[%emt 0:00:23]} Qxh5 {[%emt 0:09:10]} 43. hxg7 {[%emt 0:03:19]} Bxg7 {[%emt 0:12:59]} 44. Rxg7+ {[%emt 0:01:20]} Kxg7 {[%emt 0:00:45]} 45. Qxf6+ {[%emt 0:00:06]} Kg8 {[%emt 0:00:11]} 46. Ng3 {[%emt 0:00:20]} Rf7 {[%emt 0:03:01]} 47. Nxh5 {[%emt 0:00:47]} Re1+ {[%emt 0:00:19]} 48. Kg2 {[%emt 0:00:04]} Rxf6 {[%emt 0:00:02]} 49. Nxf6+ {[%emt 0:00:11]} Kf7 {[%emt 0:00:11]} 50. Bd4 {[%emt 0:00:12]} Nb3 {[%emt 0:00:26]} 0-1

[Event "EYTCC Open U18 2022"]
[Site "Thessaloniki"]
[Date "2022.07.17"]
[Round "6.19"]
[White "Ramaj, Ergit"]
[Black "Wernberg, Hugo"]
[Result "1-0"]
[ECO "C58"]
[WhiteElo "1980"]
[BlackElo "2316"]
[Annotator "ChessBase"]
[PlyCount "73"]
[EventDate "2022.07.12"]
[EventType "team-tourn"]
[EventCountry "GRE"]
[SourceTitle "playchess.com"]
[Source "ChessBase"]
[SourceQuality "1"]
[WhiteTeam "Albania"]
[BlackTeam "Sweden"]
[WhiteTeamCountry "ALB"]
[BlackTeamCountry "SWE"]
[TimeControl "40/5400+30:1800+30"]

1. e4 {[%emt 0:00:03]} e5 {[%emt 0:00:20]} 2. Nf3 {[%emt 0:00:05]} Nc6 {[%emt 0:00:07]} 3. Bc4 {[%emt 0:00:06]} Nf6 {[%emt 0:00:10]} 4. Ng5 {[%emt 0:00:25]} d5 {[%emt 0:00:09]} 5. exd5 {[%emt 0:00:08]} Na5 {[%emt 0:00:08]} 6. Bb5+ {[%emt 0:00:07]} c6 {[%emt 0:00:13]} 7. dxc6 {[%emt 0:00:10]} bxc6 {[%emt 0:00:22]} 8. Bd3 {[%emt 0:00:43]} Nd5 {[%emt 0:00:21]} 9. Nf3 {[%emt 0:00:23]} Bd6 {[%emt 0:01:05]} 10. O-O {[%emt 0:00:17]} O-O {[%emt 0:00:49]} 11. Re1 {[%emt 0:00:13]} f5 {[%emt 0:05:46]} 12. Nxe5 {[%emt 0:00:38]} Qf6 {[%emt 0:00:14]} 13. Nf3 {[%emt 0:00:22]} g5 {[%emt 0:00:24]} 14. c4 {[%emt 0:00:40]} Nf4 {[%emt 0:01:03]} 15. Bf1 {[%emt 0:00:14]} g4 {[%emt 0:01:05]} 16. d4 {[%emt 0:00:19]} gxf3 {[%emt 0:01:23]} 17. Qxf3 {[%emt 0:00:04]} Ne6 {[%emt 0:07:13]} 18. Qc3 {[%emt 0:00:14]} Bc7 {[%emt 0:07:31]} 19. b4 {[%emt 0:00:58]} Nb7 {[%emt 0:01:24]} 20. c5 {[%emt 0:00:36]} a5 {[%emt 0:02:15]} 21. b5 {[%emt 0:00:15]} cxb5 {[%emt 0:03:49]} 22. Bxb5 {[%emt 0:00:23]} a4 {[%emt 0:04:28]} 23. Bc4 {[%emt 0:00:17]} Ba5 {[%emt 0:05:22]} 24. Qg3+ {[%emt 0:00:16]} Kh8 {[%emt 0:06:26]} 25. Rxe6 {[%emt 0:01:44]} Bxe6 {[%emt 0:01:45]} 26. Bf4 {[%emt 0:00:20]} Bxc4 {[%emt 0:04:28]} 27. Be5 {[%emt 0:00:34]} Rae8 {[%emt 0:04:41]} 28. Bxf6+ {[%emt 0:01:16]} Rxf6 {[%emt 0:00:10]} 29. Na3 {[%emt 0:04:19]} Bd5 {[%emt 0:28:29]} 30. Qd3 {[%emt 0:18:28]} Nd8 {[%emt 0:10:19]} 31. Nc4 {[%emt 0:16:36]} Ne6 {[%emt 0:01:12]} 32. Ne3 {[%emt 0:15:35]} Nf4 {[%emt 0:01:58]} 33. Qb5 {[%emt 0:03:47]} Bc6 {[%emt 0:01:19]} 34. Qxa5 {[%emt 0:01:48]} Bxg2 {[%emt 0:00:31]} 35. Nxg2 {[%emt 0:07:10]} Rg6 {[%emt 0:00:07]} 36. Kh1 {[%emt 0:01:21]} Rxg2 {[%emt 0:00:15]} 37. Qd2 {[%emt 0:01:55]} 1-0

[Event "EYTCC Open U18 2022"]
[Site "Thessaloniki"]
[Date "2022.07.17"]
[Round "6.20"]
[White "Soderstrom, Adrian"]
[Black "Boci, Petro"]
[Result "1-0"]
[ECO "E17"]
[WhiteElo "2292"]
[BlackElo "1709"]
[Annotator "ChessBase"]
[PlyCount "59"]
[EventDate "2022.07.12"]
[EventType "team-tourn"]
[EventCountry "GRE"]
[SourceTitle "playchess.com"]
[Source "ChessBase"]
[SourceQuality "1"]
[WhiteTeam "Sweden"]
[BlackTeam "Albania"]
[WhiteTeamCountry "SWE"]
[BlackTeamCountry "ALB"]
[TimeControl "40/5400+30:1800+30"]

1. d4 {[%emt 0:00:02]} Nf6 2. c4 {[%emt 0:00:17]} e6 {[%emt 0:02:09]} 3. Nf3 {[%emt 0:00:11]} b6 {[%emt 0:00:19]} 4. g3 {[%emt 0:00:04]} Bb7 {[%emt 0:00:09]} 5. Bg2 {[%emt 0:00:02]} Be7 {[%emt 0:00:14]} 6. O-O {[%emt 0:00:04]} O-O {[%emt 0:00:06]} 7. d5 {[%emt 0:00:15]} exd5 {[%emt 0:07:23]} 8. Nh4 {[%emt 0:00:05]} c6 {[%emt 0:04:21]} 9. cxd5 {[%emt 0:00:09]} Nxd5 {[%emt 0:02:42]} 10. Nf5 {[%emt 0:00:02]} Nc7 {[%emt 0:05:04]} 11. e4 {[%emt 0:00:08]} d5 {[%emt 0:07:02]} 12. exd5 {[%emt 0:00:04]} cxd5 {[%emt 0:03:31]} 13. Nc3 {[%emt 0:02:26]} Bf6 {[%emt 0:07:57]} 14. Bf4 {[%emt 0:04:12]} Bxc3 {[%emt 0:02:24]} 15. bxc3 {[%emt 0:00:21]} Nd7 {[%emt 0:07:50]} 16. Qg4 {[%emt 0:14:03]} Ne6 {[%emt 0:08:29]} 17. Bd6 {[%emt 0:09:19]} Nf6 {[%emt 0:04:31]} 18. Qb4 {[%emt 0:01:18]} Re8 {[%emt 0:09:47]} 19. Be7 {[%emt 0:01:03]} Qd7 {[%emt 0:01:34]} 20. Bxf6 {[%emt 0:08:01]} gxf6 {[%emt 0:00:30]} 21. Qh4 {[%emt 0:00:38]} Ng5 {[%emt 0:04:15]} 22. g4 {[%emt 0:03:23]} Rac8 {[%emt 0:10:39]} 23. Qh6 {[%emt 0:00:46]} Ne6 {[%emt 0:00:14]} 24. Qxf6 {[%emt 0:01:04]} Rc4 {[%emt 0:01:51]} 25. Rfe1 {[%emt 0:00:59]} Re4 {[%emt 0:01:43]} 26. Bxe4 {[%emt 0:00:51]} dxe4 {[%emt 0:00:06]} 27. Rad1 {[%emt 0:00:11]} Qc7 {[%emt 0:03:44]} 28. Nh6+ {[%emt 0:00:06]} Kf8 {[%emt 0:00:47]} 29. Qh8+ {[%emt 0:00:04]} Ke7 {[%emt 0:00:25]} 30. Nf5# {[%emt 0:00:09]} 1-0